bitfinex/quotes_BTCUSD_20230907
["timestamp","ask_amount","ask_price","bid_price","bid_amount"]
[1694085415656,4.74591925,25768.0,25767.0,0.93396945]
[1694085415900,4.74609925,25768.0,25767.0,0.93396945]
[1694085416134,4.74645925,25768.0,25767.0,0.93396945]
[1694085416385,4.74927925,25768.0,25767.0,0.93396945]
[1694085416609,4.74885925,25768.0,25767.0,0.93396945]
[1694085417060,4.74675925,25768.0,25767.0,0.93396945]
[1694085417308,4.74765925,25768.0,25767.0,0.93396945]
[1694085417541,4.62423925,25768.0,25767.0,0.93396945]
[1694085417783,4.70427925,25768.0,25767.0,0.93396945]
[1694085417973,4.72023925,25768.0,25767.0,0.93396945]
[1694085418231,4.41334591,25768.0,25767.0,0.93396945]
[1694085418448,4.73587422,25768.0,25767.0,0.93396945]
[1694085418648,4.73791422,25768.0,25767.0,0.93396945]
[1694085418891,4.73911422,25768.0,25767.0,0.93396945]
[1694085419327,4.73851422,25768.0,25767.0,0.93396945]
[1694085419544,4.73815422,25768.0,25767.0,0.93396945]
[1694085419775,4.73869422,25768.0,25767.0,0.93396945]
[1694085420003,4.73863422,25768.0,25767.0,0.93396945]
[1694085420284,4.67887422,25768.0,25767.0,0.93396945]
[1694085420511,4.68277422,25768.0,25767.0,0.93396945]
[1694085420737,4.68967422,25768.0,25767.0,0.93396945]
[1694085420963,4.68985422,25768.0,25767.0,0.93396945]
[1694085421194,4.68913422,25768.0,25767.0,0.93396945]
[1694085421428,4.84123422,25768.0,25767.0,0.93396945]
[1694085421675,4.83667422,25768.0,25767.0,0.93396945]
[1694085421902,4.83355422,25768.0,25767.0,0.93396945]
[1694085422106,4.84279422,25768.0,25767.0,0.93396945]
[1694085422316,4.83727422,25768.0,25767.0,0.93396945]
[1694085422516,4.83223422,25768.0,25767.0,0.93396945]
[1694085422721,4.83307422,25768.0,25767.0,0.93396945]
[1694085422943,4.83943422,25768.0,25767.0,0.93396945]
[1694085423154,4.83535422,25768.0,25767.0,0.93396945]
[1694085423362,4.83751422,25768.0,25767.0,0.93396945]
[1694085423547,4.83247422,25768.0,25767.0,0.93396945]
[1694085423670,4.83235422,25768.0,25767.0,0.93396945]
[1694085423869,4.83223422,25768.0,25767.0,0.93396945]
[1694085424077,4.83229422,25768.0,25767.0,0.93396945]
[1694085424307,4.83211422,25768.0,25767.0,0.93396945]
[1694085424520,4.83187422,25768.0,25767.0,0.93396945]
[1694085424732,4.68955422,25768.0,25767.0,0.93396945]
[1694085425085,4.67045422,25768.0,25767.0,0.93396945]
[1694085425320,4.67429422,25768.0,25767.0,0.93396945]
[1694085425493,4.67447422,25768.0,25767.0,0.93396945]
[1694085425747,4.67435422,25768.0,25767.0,0.93396945]
[1694085425930,4.67429422,25768.0,25767.0,0.93396945]
[1694085426138,4.82219422,25768.0,25767.0,0.93396945]
[1694085426335,4.82075422,25768.0,25767.0,0.93396945]
[1694085426717,4.81523422,25768.0,25767.0,0.93396945]
[1694085426947,4.81379422,25768.0,25767.0,0.93396945]
[1694085427178,4.81463422,25768.0,25767.0,0.93396945]
[1694085427409,4.81751422,25768.0,25767.0,0.93396945]
[1694085427633,4.81487422,25768.0,25767.0,0.93396945]
[1694085427906,4.81511422,25768.0,25767.0,0.93396945]
[1694085428124,4.81775422,25768.0,25767.0,0.93396945]
[1694085428325,4.82855422,25768.0,25767.0,0.93396945]
[1694085428504,4.82615422,25768.0,25767.0,0.93396945]
[1694085428708,4.82375422,25768.0,25767.0,0.93396945]
[1694085428858,4.82003422,25768.0,25767.0,0.93396945]
[1694085429065,4.80767422,25768.0,25767.0,0.93396945]
[1694085429303,4.80551422,25768.0,25767.0,0.93396945]
[1694085429508,4.65737422,25768.0,25767.0,0.93396945]
[1694085429678,4.65179422,25768.0,25767.0,0.93396945]
[1694085429880,4.64375422,25768.0,25767.0,0.93396945]
[1694085430110,4.64315422,25768.0,25767.0,0.93396945]
[1694085430307,4.64411422,25768.0,25767.0,0.93396945]
[1694085430577,4.64579422,25768.0,25767.0,0.93396945]
[1694085430825,4.64585422,25768.0,25767.0,0.93396945]
[1694085431055,4.64459422,25768.0,25767.0,0.93396945]
[1694085431292,4.64429422,25768.0,25767.0,0.93396945]
[1694085431659,4.64501422,25768.0,25767.0,0.93396945]
[1694085432199,4.64507422,25768.0,25767.0,0.93396945]
[1694085432401,4.64513422,25768.0,25767.0,0.93396945]
[1694085432601,4.64507422,25768.0,25767.0,0.93396945]
[1694085432810,4.64555422,25768.0,25767.0,0.93396945]
[1694085433127,4.64531422,25768.0,25767.0,0.93396945]
[1694085433338,4.64723422,25768.0,25767.0,0.93396945]
[1694085433547,4.64579422,25768.0,25767.0,0.93396945]
[1694085433759,4.64771422,25768.0,25767.0,0.93396945]
[1694085433979,4.64729422,25768.0,25767.0,0.93396945]
[1694085434161,4.64525422,25768.0,25767.0,0.93396945]
[1694085434356,4.64531422,25768.0,25767.0,0.93396945]
[1694085434573,4.64681422,25768.0,25767.0,0.93396945]
[1694085434983,4.64207422,25768.0,25767.0,0.93396945]
[1694085435285,4.64309422,25768.0,25767.0,0.93396945]
[1694085435499,4.64225422,25768.0,25767.0,0.93396945]
[1694085435701,4.64231422,25768.0,25767.0,0.93396945]
[1694085435954,4.64237422,25768.0,25767.0,0.93396945]
[1694085436141,4.64177422,25768.0,25767.0,0.93396945]
[1694085436290,4.64219422,25768.0,25767.0,0.93396945]
[1694085436507,4.64171422,25768.0,25767.0,0.93396945]
[1694085436763,4.64237422,25768.0,25767.0,0.93396945]
[1694085436967,4.64201422,25768.0,25767.0,0.93396945]
[1694085437175,4.64417422,25768.0,25767.0,0.93396945]
[1694085437379,4.64459422,25768.0,25767.0,0.93396945]
[1694085437552,4.64423422,25768.0,25767.0,0.93396945]
[1694085437764,4.64429422,25768.0,25767.0,0.93396945]
[1694085437910,4.64405422,25768.0,25767.0,0.93396945]
[1694085438332,4.64411422,25768.0,25767.0,0.93396945]
[1694085438536,4.64423422,25768.0,25767.0,0.93396945]
[1694085438754,4.64981422,25768.0,25767.0,0.93396945]
[1694085438950,4.64987422,25768.0,25767.0,0.93396945]
[1694085439220,4.65227422,25768.0,25767.0,0.93396945]
[1694085439375,4.65221422,25768.0,25767.0,0.93396945]
[1694085439593,4.65137422,25768.0,25767.0,0.93396945]
[1694085439805,4.64909422,25768.0,25767.0,0.93396945]
[1694085440445,4.65011422,25768.0,25767.0,0.93396945]
[1694085440652,4.65023422,25768.0,25767.0,0.93396945]
[1694085440866,4.64897422,25768.0,25767.0,0.93396945]
[1694085441076,4.64753422,25768.0,25767.0,0.93396945]
[1694085441274,4.64855422,25768.0,25767.0,0.93396945]
[1694085441705,4.64693422,25768.0,25767.0,0.93396945]
[1694085441900,4.64807422,25768.0,25767.0,0.93396945]
[1694085442274,4.64849422,25768.0,25767.0,0.93396945]
[1694085442481,4.64861422,25768.0,25767.0,0.93396945]
[1694085442779,4.64897422,25768.0,25767.0,0.93396945]
[1694085443037,4.65179422,25768.0,25767.0,0.93396945]
[1694085443243,4.65185422,25768.0,25767.0,0.93396945]
[1694085443423,4.65161422,25768.0,25767.0,0.93396945]
[1694085443625,4.65239422,25768.0,25767.0,0.93396945]
[1694085443860,4.65245422,25768.0,25767.0,0.93396945]
[1694085444044,4.65191422,25768.0,25767.0,0.93396945]
[1694085444266,4.65227422,25768.0,25767.0,0.93396945]
[1694085444740,4.65221422,25768.0,25767.0,0.93396945]
[1694085445024,4.65227422,25768.0,25767.0,0.93396945]
[1694085445239,4.65233422,25768.0,25767.0,0.93396945]
[1694085445447,4.65107422,25768.0,25767.0,0.93396945]
[1694085445658,4.65023422,25768.0,25767.0,0.93396945]
[1694085445887,4.65029422,25768.0,25767.0,0.93396945]
[1694085446308,4.64975422,25768.0,25767.0,0.93396945]
[1694085446520,4.65023422,25768.0,25767.0,0.93396945]
[1694085446730,4.65017422,25768.0,25767.0,0.93396945]
[1694085447344,4.64987422,25768.0,25767.0,0.93396945]
[1694085447566,4.64759422,25768.0,25767.0,0.93396945]
[1694085447770,4.64819422,25768.0,25767.0,0.93396945]
[1694085447978,4.64777422,25768.0,25767.0,0.93396945]
[1694085448187,4.64825422,25768.0,25767.0,0.93396945]
[1694085448373,4.64951422,25768.0,25767.0,0.93396945]
[1694085448574,4.65077422,25768.0,25767.0,0.93396945]
[1694085448784,4.65227422,25768.0,25767.0,0.93396945]
[1694085448991,4.65239422,25768.0,25767.0,0.93396945]
[1694085449198,4.65089422,25768.0,25767.0,0.93396945]
[1694085449397,4.65143422,25768.0,25767.0,0.93396945]
[1694085449608,4.65137422,25768.0,25767.0,0.93396945]
[1694085449847,4.65149422,25768.0,25767.0,0.93396945]
[1694085450055,4.65155422,25768.0,25767.0,0.93396945]
[1694085450267,4.33664591,25768.0,25767.0,0.93396945]
[1694085450475,4.6517774,25768.0,25767.0,0.93396945]
[1694085450658,4.33712591,25768.0,25767.0,0.93396945]
[1694085450863,4.33850591,25768.0,25767.0,0.93396945]
[1694085451072,4.33736591,25768.0,25767.0,0.93396945]
[1694085451489,4.33730591,25768.0,25767.0,0.93396945]
[1694085451694,4.33724591,25768.0,25767.0,0.93396945]
[1694085451925,4.33778591,25768.0,25767.0,0.93396945]
[1694085452156,4.33784591,25768.0,25767.0,0.93396945]
[1694085452340,4.33796591,25768.0,25767.0,0.93396945]
[1694085452489,4.33784591,25768.0,25767.0,0.93396945]
[1694085452903,4.33742591,25768.0,25767.0,0.93396945]
[1694085453102,4.33754591,25768.0,25767.0,0.93396945]
[1694085453504,4.33706591,25768.0,25767.0,0.93396945]
[1694085453705,4.33478591,25768.0,25767.0,0.93396945]
[1694085453903,4.33592591,25768.0,25767.0,0.93396945]
[1694085454110,4.33490591,25768.0,25767.0,0.93396945]
[1694085454335,4.33478591,25768.0,25767.0,0.93396945]
[1694085454537,4.33490591,25768.0,25767.0,0.93396945]
[1694085454752,4.33670591,25768.0,25767.0,0.93396945]
[1694085455043,4.33814591,25768.0,25767.0,0.93396945]
[1694085455249,4.33820591,25768.0,25767.0,0.93396945]
[1694085455417,4.33922591,25768.0,25767.0,0.93396945]
[1694085455618,4.33778591,25768.0,25767.0,0.93396945]
[1694085455821,4.33814591,25768.0,25767.0,0.93396945]
[1694085456490,4.33820591,25768.0,25767.0,0.93396945]
[1694085456893,4.33826591,25768.0,25767.0,0.93396945]
[1694085457197,4.33814591,25768.0,25767.0,0.93396945]
[1694085457815,4.33856591,25768.0,25767.0,0.93396945]
[1694085458015,4.33850591,25768.0,25767.0,0.93396945]
[1694085458275,4.33874591,25768.0,25767.0,0.93396945]
[1694085458479,4.33850591,25768.0,25767.0,0.93396945]
[1694085458679,4.33874591,25768.0,25767.0,0.93396945]
[1694085458986,4.34510591,25768.0,25767.0,0.93396945]
[1694085459192,4.34534591,25768.0,25767.0,0.93396945]
[1694085459374,4.34486591,25768.0,25767.0,0.93396945]
[1694085459630,4.34498591,25768.0,25767.0,0.93396945]
[1694085459842,4.34510591,25768.0,25767.0,0.93396945]
[1694085460046,4.34444591,25768.0,25767.0,0.93396945]
[1694085460249,4.34606591,25768.0,25767.0,0.93396945]
[1694085460384,4.34624591,25768.0,25767.0,0.93396945]
[1694085460584,4.34498591,25768.0,25767.0,0.93396945]
[1694085460799,4.34516591,25768.0,25767.0,0.93396945]
[1694085461066,4.34486591,25768.0,25767.0,0.93396945]
[1694085461234,4.34492591,25768.0,25767.0,0.93396945]
[1694085461656,4.34498591,25768.0,25767.0,0.93396945]
[1694085461858,4.34564591,25768.0,25767.0,0.93396945]
[1694085462064,4.34558591,25768.0,25767.0,0.93396945]
[1694085462266,4.34582591,25768.0,25767.0,0.93396945]
[1694085462475,4.34576591,25768.0,25767.0,0.93396945]
[1694085462686,4.34570591,25768.0,25767.0,0.93396945]
[1694085463237,4.34504591,25768.0,25767.0,0.93396945]
[1694085463442,4.34348591,25768.0,25767.0,0.93396945]
[1694085463656,4.34498591,25768.0,25767.0,0.93396945]
[1694085463858,4.34504591,25768.0,25767.0,0.93396945]
[1694085464070,4.34510591,25768.0,25767.0,0.93396945]
[1694085464281,4.34516591,25768.0,25767.0,0.93396945]
[1694085464535,4.34528591,25768.0,25767.0,0.93396945]
[1694085464718,4.34534591,25768.0,25767.0,0.93396945]
[1694085464912,4.34540591,25768.0,25767.0,0.93396945]
[1694085465124,4.34558591,25768.0,25767.0,0.93396945]
[1694085465335,4.34684591,25768.0,25767.0,0.93396945]
[1694085465554,4.34690591,25768.0,25767.0,0.93396945]
[1694085465680,4.34696591,25768.0,25767.0,0.93396945]
[1694085465914,4.34762591,25768.0,25767.0,0.93396945]
[1694085466139,4.34930591,25768.0,25767.0,0.93396945]
[1694085466339,4.34948591,25768.0,25767.0,0.93396945]
[1694085466570,4.35128591,25768.0,25767.0,0.93396945]
[1694085466742,4.34648591,25768.0,25767.0,0.93396945]
[1694085466941,4.34654591,25768.0,25767.0,0.93396945]
[1694085467175,4.34660591,25768.0,25767.0,0.93396945]
[1694085467377,4.34666591,25768.0,25767.0,0.93396945]
[1694085467660,4.34672591,25768.0,25767.0,0.93396945]
[1694085468137,4.34678591,25768.0,25767.0,0.93396945]
[1694085468360,4.34642591,25768.0,25767.0,0.93396945]
[1694085468474,4.34660591,25768.0,25767.0,0.93396945]
[1694085468674,4.34510591,25768.0,25767.0,0.93396945]
[1694085468938,4.34516591,25768.0,25767.0,0.93396945]
[1694085469140,4.34522591,25768.0,25767.0,0.93396945]
[1694085469573,4.34534591,25768.0,25767.0,0.93396945]
[1694085469771,4.34516591,25768.0,25767.0,0.93396945]
[1694085469926,4.34528591,25768.0,25767.0,0.93396945]
[1694085470123,4.34534591,25768.0,25767.0,0.93396945]
[1694085470529,4.34486591,25768.0,25767.0,0.93396945]
[1694085470943,4.34456591,25768.0,25767.0,0.93396945]
[1694085471146,4.34324591,25768.0,25767.0,0.93396945]
[1694085471347,4.34030591,25768.0,25767.0,0.93396945]
[1694085471545,4.34150591,25768.0,25767.0,0.93396945]
[1694085471892,4.34378591,25768.0,25767.0,0.93396945]
[1694085472085,4.34402591,25768.0,25767.0,0.93396945]
[1694085472285,4.34414591,25768.0,25767.0,0.93396945]
[1694085472428,4.34420591,25768.0,25767.0,0.93396945]
[1694085472636,4.34570591,25768.0,25767.0,0.93396945]
[1694085472838,4.34582591,25768.0,25767.0,0.93396945]
[1694085473039,4.34648591,25768.0,25767.0,0.93396945]
[1694085473291,4.34642591,25768.0,25767.0,0.93396945]
[1694085473601,4.34660591,25768.0,25767.0,0.93396945]
[1694085473797,4.34666591,25768.0,25767.0,0.93396945]
[1694085474002,4.33994591,25768.0,25767.0,0.93396945]
[1694085474135,4.33526591,25768.0,25767.0,0.93396945]
[1694085474337,4.33568591,25768.0,25767.0,0.93396945]
[1694085474755,4.33592591,25768.0,25767.0,0.93396945]
[1694085474957,4.33178591,25768.0,25767.0,0.93396945]
[1694085475169,4.33100591,25768.0,25767.0,0.93396945]
[1694085475304,4.33376591,25768.0,25767.0,0.93396945]
[1694085475503,4.33388591,25768.0,25767.0,0.93396945]
[1694085475706,4.33400591,25768.0,25767.0,0.93396945]
[1694085475912,4.33412591,25768.0,25767.0,0.93396945]
[1694085476118,4.33424591,25768.0,25767.0,0.93396945]
[1694085476321,4.33436591,25768.0,25767.0,0.93396945]
[1694085476518,4.33502591,25768.0,25767.0,0.93396945]
[1694085476774,4.33514591,25768.0,25767.0,0.93396945]
[1694085477000,4.33526591,25768.0,25767.0,0.93396945]
[1694085477237,4.33310591,25768.0,25767.0,0.93396945]
[1694085477547,4.33646591,25768.0,25767.0,0.93396945]
[1694085477751,4.33658591,25768.0,25767.0,0.93396945]
[1694085477951,4.33664591,25768.0,25767.0,0.93396945]
[1694085478153,4.33388591,25768.0,25767.0,0.93396945]
[1694085478348,4.33514591,25768.0,25767.0,0.93396945]
[1694085478561,4.33592591,25768.0,25767.0,0.93396945]
[1694085478731,4.33598591,25768.0,25767.0,0.93396945]
[1694085478941,4.33604591,25768.0,25767.0,0.93396945]
[1694085479140,4.33610591,25768.0,25767.0,0.93396945]
[1694085479341,4.34084591,25768.0,25767.0,0.93396945]
[1694085479544,4.34390591,25768.0,25767.0,0.93396945]
[1694085479707,4.33946591,25768.0,25767.0,0.93396945]
[1694085479909,4.33898591,25768.0,25767.0,0.93396945]
[1694085480103,4.31016591,25768.0,25767.0,0.93396945]
[1694085480311,4.32704591,25768.0,25767.0,0.93396945]
[1694085480514,4.32680591,25768.0,25767.0,0.93396945]
[1694085480723,4.32338591,25768.0,25767.0,0.93396945]
[1694085480924,4.32320591,25768.0,25767.0,0.93396945]
[1694085481130,4.32146591,25768.0,25767.0,0.93396945]
[1694085481340,3.88754591,25768.0,25767.0,0.93396945]
[1694085481540,3.74939624,25768.0,25767.0,0.93396945]
[1694085481974,3.43454064,25768.0,25767.0,0.93396945]
[1694085482998,3.50048064,25768.0,25767.0,0.93396945]
[1694085483199,3.50108064,25768.0,25767.0,0.93396945]
[1694085483406,3.43454064,25768.0,25767.0,0.93396945]
[1694085484239,3.41454064,25768.0,25767.0,0.93396945]
[1694085484447,3.48060064,25768.0,25767.0,0.93396945]
[1694085484655,3.48042064,25768.0,25767.0,0.93396945]
[1694085484873,3.41454064,25768.0,25767.0,0.93396945]
[1694085485847,3.0629325,25768.0,25767.0,0.93396945]
[1694085486056,2.9964525,25768.0,25767.0,0.93396945]
[1694085493810,3.27610952,25768.0,25767.0,0.93396945]
[1694085503059,3.15540952,25768.0,25767.0,0.93396945]
[1694085504297,3.15936543,25768.0,25767.0,0.93396945]
[1694085504827,3.15839711,25768.0,25767.0,0.93396945]
[1694085505837,3.15932067,25768.0,25767.0,0.93396945]
[1694085506845,3.35324754,25768.0,25767.0,0.93396945]
[1694085509723,3.35324754,25768.0,25767.0,0.88747266]
[1694085509935,3.15932067,25768.0,25767.0,0.88747266]
[1694085521866,3.23768067,25768.0,25767.0,0.88747266]
[1694085522064,3.24416067,25768.0,25767.0,0.88747266]
[1694085522269,2.96402365,25768.0,25767.0,0.88747266]
[1694085522475,3.35054892,25768.0,25767.0,0.88747266]
[1694085522676,3.35030892,25768.0,25767.0,0.88747266]
[1694085522980,3.47040892,25768.0,25767.0,0.88747266]
[1694085523188,3.46986892,25768.0,25767.0,0.88747266]
[1694085523387,3.46968892,25768.0,25767.0,0.88747266]
[1694085523611,3.46944892,25768.0,25767.0,0.88747266]
[1694085523903,3.46836892,25768.0,25767.0,0.88747266]
[1694085524098,3.46818892,25768.0,25767.0,0.88747266]
[1694085524250,3.46800892,25768.0,25767.0,0.88747266]
[1694085524455,3.46758892,25768.0,25767.0,0.88747266]
[1694085524655,3.46776892,25768.0,25767.0,0.88747266]
[1694085524882,3.46722892,25768.0,25767.0,0.88747266]
[1694085525036,3.46674892,25768.0,25767.0,0.88747266]
[1694085525248,3.46644892,25768.0,25767.0,0.88747266]
[1694085525459,3.46626892,25768.0,25767.0,0.88747266]
[1694085525660,3.46602892,25768.0,25767.0,0.88747266]
[1694085525880,3.46566892,25768.0,25767.0,0.88747266]
[1694085526078,3.46554892,25768.0,25767.0,0.88747266]
[1694085526278,3.46536892,25768.0,25767.0,0.88747266]
[1694085526538,3.46464892,25768.0,25767.0,0.88747266]
[1694085526741,3.46452892,25768.0,25767.0,0.88747266]
[1694085526938,3.46434892,25768.0,25767.0,0.88747266]
[1694085527249,3.46416892,25768.0,25767.0,0.88747266]
[1694085527452,3.46434892,25768.0,25767.0,0.88747266]
[1694085527649,3.46416892,25768.0,25767.0,0.88747266]
[1694085527785,3.46386892,25768.0,25767.0,0.88747266]
[1694085527995,3.52509126,25768.0,25767.0,0.88747266]
[1694085528197,3.52491126,25768.0,25767.0,0.88747266]
[1694085528402,3.52497126,25768.0,25767.0,0.88747266]
[1694085528596,3.52485126,25768.0,25767.0,0.88747266]
[1694085528795,3.52461126,25768.0,25767.0,0.88747266]
[1694085529159,3.52431126,25768.0,25767.0,0.88747266]
[1694085529364,3.52413126,25768.0,25767.0,0.88747266]
[1694085529562,3.52395126,25768.0,25767.0,0.88747266]
[1694085529770,3.5240042,25768.0,25767.0,0.88747266]
[1694085529949,3.5237042,25768.0,25767.0,0.88747266]
[1694085530121,3.5235842,25768.0,25767.0,0.88747266]
[1694085530326,3.5234642,25768.0,25767.0,0.88747266]
[1694085530553,3.5232842,25768.0,25767.0,0.88747266]
[1694085530761,3.5231042,25768.0,25767.0,0.88747266]
[1694085530958,3.5229842,25768.0,25767.0,0.88747266]
[1694085531163,3.5228642,25768.0,25767.0,0.88747266]
[1694085531335,3.5226242,25768.0,25767.0,0.88747266]
[1694085531563,3.5222042,25768.0,25767.0,0.88747266]
[1694085531760,3.5212442,25768.0,25767.0,0.88747266]
[1694085532002,3.5209442,25768.0,25767.0,0.88747266]
[1694085532162,3.5208242,25768.0,25767.0,0.88747266]
[1694085532366,3.5202242,25768.0,25767.0,0.88747266]
[1694085532775,3.5201642,25768.0,25767.0,0.88747266]
[1694085532989,3.3975442,25768.0,25767.0,0.88747266]
[1694085533206,3.3958042,25768.0,25767.0,0.88747266]
[1694085533360,3.3968842,25768.0,25767.0,0.88747266]
[1694085533561,3.3968242,25768.0,25767.0,0.88747266]
[1694085533763,3.3968842,25768.0,25767.0,0.88747266]
[1694085534203,3.3982042,25768.0,25767.0,0.88747266]
[1694085534601,3.3968242,25768.0,25767.0,0.88747266]
[1694085534805,3.3966442,25768.0,25767.0,0.88747266]
[1694085535007,3.3978442,25768.0,25767.0,0.88747266]
[1694085535503,3.3979042,25768.0,25767.0,0.88747266]
[1694085536546,3.3977842,25768.0,25767.0,0.88747266]
[1694085536715,3.3977242,25768.0,25767.0,0.88747266]
[1694085537235,3.3967042,25768.0,25767.0,0.88747266]
[1694085537416,3.3965842,25768.0,25767.0,0.88747266]
[1694085537604,3.3964042,25768.0,25767.0,0.88747266]
[1694085537822,3.3962842,25768.0,25767.0,0.88747266]
[1694085538057,3.3961042,25768.0,25767.0,0.88747266]
[1694085538352,3.3973642,25768.0,25767.0,0.88747266]
[1694085538585,3.42775149,25768.0,25767.0,0.88747266]
[1694085538992,3.42769149,25768.0,25767.0,0.88747266]
[1694085539215,3.42775149,25768.0,25767.0,0.88747266]
[1694085539438,3.42787149,25768.0,25767.0,0.88747266]
[1694085539643,3.42775149,25768.0,25767.0,0.88747266]
[1694085539846,3.42745149,25768.0,25767.0,0.88747266]
[1694085540031,3.42751149,25768.0,25767.0,0.88747266]
[1694085540433,3.42757149,25768.0,25767.0,0.88747266]
[1694085540688,3.42751149,25768.0,25767.0,0.88747266]
[1694085540871,3.42727149,25768.0,25767.0,0.88747266]
[1694085541305,3.42733149,25768.0,25767.0,0.88747266]
[1694085541508,3.42739149,25768.0,25767.0,0.88747266]
[1694085541709,3.42745149,25768.0,25767.0,0.88747266]
[1694085542148,3.42751149,25768.0,25767.0,0.88747266]
[1694085542355,3.42745149,25768.0,25767.0,0.88747266]
[1694085542563,3.42601149,25768.0,25767.0,0.88747266]
[1694085542763,3.42685149,25768.0,25767.0,0.88747266]
[1694085543148,3.42691149,25768.0,25767.0,0.88747266]
[1694085543358,3.42751149,25768.0,25767.0,0.88747266]
[1694085543557,3.61757149,25768.0,25767.0,0.88747266]
[1694085543758,3.61751149,25768.0,25767.0,0.88747266]
[1694085543955,3.61757149,25768.0,25767.0,0.88747266]
[1694085544129,3.61751149,25768.0,25767.0,0.88747266]
[1694085544347,3.61745149,25768.0,25767.0,0.88747266]
[1694085544537,3.61691149,25768.0,25767.0,0.88747266]
[1694085544740,3.61703149,25768.0,25767.0,0.88747266]
[1694085545467,3.61709149,25768.0,25767.0,0.88747266]
[1694085545827,3.61715149,25768.0,25767.0,0.88747266]
[1694085546229,3.61637149,25768.0,25767.0,0.88747266]
[1694085546432,3.61655149,25768.0,25767.0,0.88747266]
[1694085546628,3.61511149,25768.0,25767.0,0.88747266]
[1694085546844,3.61523149,25768.0,25767.0,0.88747266]
[1694085547043,3.5849642,25768.0,25767.0,0.88747266]
[1694085547439,3.5855642,25768.0,25767.0,0.88747266]
[1694085547645,3.5855042,25768.0,25767.0,0.88747266]
[1694085547865,3.5874242,25768.0,25767.0,0.88747266]
[1694085548043,3.5879042,25768.0,25767.0,0.88747266]
[1694085548246,3.5879642,25768.0,25767.0,0.88747266]
[1694085548453,3.5884442,25768.0,25767.0,0.88747266]
[1694085548652,3.5886842,25768.0,25767.0,0.88747266]
[1694085548998,3.5886242,25768.0,25767.0,0.88747266]
[1694085549155,3.5885642,25768.0,25767.0,0.88747266]
[1694085550376,3.5886242,25768.0,25767.0,0.88747266]
[1694085550584,3.5886842,25768.0,25767.0,0.88747266]
[1694085550829,3.5886242,25768.0,25767.0,0.88747266]
[1694085551402,3.5886842,25768.0,25767.0,0.88747266]
[1694085551645,3.5886242,25768.0,25767.0,0.88747266]
[1694085551854,3.5878442,25768.0,25767.0,0.88747266]
[1694085552068,3.5873042,25768.0,25767.0,0.88747266]
[1694085552261,3.5897642,25768.0,25767.0,0.88747266]
[1694085552394,3.5894042,25768.0,25767.0,0.88747266]
[1694085552605,3.5891642,25768.0,25767.0,0.88747266]
[1694085552853,3.5891042,25768.0,25767.0,0.88747266]
[1694085553019,3.5891642,25768.0,25767.0,0.88747266]
[1694085553412,3.5891042,25768.0,25767.0,0.88747266]
[1694085553618,3.5923442,25768.0,25767.0,0.88747266]
[1694085553821,3.5895242,25768.0,25767.0,0.88747266]
[1694085554138,3.5897642,25768.0,25767.0,0.88747266]
[1694085554312,3.5895242,25768.0,25767.0,0.88747266]
[1694085554519,3.5895842,25768.0,25767.0,0.88747266]
[1694085554719,3.5895242,25768.0,25767.0,0.88747266]
[1694085554925,3.5895842,25768.0,25767.0,0.88747266]
[1694085555179,3.5883842,25768.0,25767.0,0.88747266]
[1694085555468,3.5882642,25768.0,25767.0,0.88747266]
[1694085555723,3.5883242,25768.0,25767.0,0.88747266]
[1694085555908,3.5879642,25768.0,25767.0,0.88747266]
[1694085556113,3.5880242,25768.0,25767.0,0.88747266]
[1694085556525,3.5881442,25768.0,25767.0,0.88747266]
[1694085556729,3.5880842,25768.0,25767.0,0.88747266]
[1694085557161,3.5870042,25768.0,25767.0,0.88747266]
[1694085557370,3.5871842,25768.0,25767.0,0.88747266]
[1694085557579,3.5871242,25768.0,25767.0,0.88747266]
[1694085557792,3.5869442,25768.0,25767.0,0.88747266]
[1694085557991,3.5870042,25768.0,25767.0,0.88747266]
[1694085558214,3.5844242,25768.0,25767.0,0.88747266]
[1694085558404,3.5845442,25768.0,25767.0,0.88747266]
[1694085559008,3.5850842,25768.0,25767.0,0.88747266]
[1694085559237,3.5851442,25768.0,25767.0,0.88747266]
[1694085559622,3.5856242,25768.0,25767.0,0.88747266]
[1694085560034,3.5856842,25768.0,25767.0,0.88747266]
[1694085560456,3.5857442,25768.0,25767.0,0.88747266]
[1694085560662,3.5858642,25768.0,25767.0,0.88747266]
[1694085561020,3.5859242,25768.0,25767.0,0.88747266]
[1694085561226,3.5858642,25768.0,25767.0,0.88747266]
[1694085561778,3.5862842,25768.0,25767.0,0.88747266]
[1694085561978,3.5863442,25768.0,25767.0,0.88747266]
[1694085562621,3.5864042,25768.0,25767.0,0.88747266]
[1694085562824,3.5864642,25768.0,25767.0,0.88747266]
[1694085563035,3.5864042,25768.0,25767.0,0.88747266]
[1694085563238,3.5864642,25768.0,25767.0,0.88747266]
[1694085563462,3.5867042,25768.0,25767.0,0.88747266]
[1694085563673,3.5866442,25768.0,25767.0,0.88747266]
[1694085563879,3.5867042,25768.0,25767.0,0.88747266]
[1694085564530,3.5867642,25768.0,25767.0,0.88747266]
[1694085564736,3.5867042,25768.0,25767.0,0.88747266]
[1694085564941,3.5867642,25768.0,25767.0,0.88747266]
[1694085565622,3.5868242,25768.0,25767.0,0.88747266]
[1694085566379,3.5871842,25768.0,25767.0,0.88747266]
[1694085566794,3.5872442,25768.0,25767.0,0.88747266]
[1694085566985,3.5867042,25768.0,25767.0,0.88747266]
[1694085567214,3.5858042,25768.0,25767.0,0.88747266]
[1694085567454,3.5857442,25768.0,25767.0,0.88747266]
[1694085567589,3.5856242,25768.0,25767.0,0.88747266]
[1694085567796,3.5921642,25768.0,25767.0,0.88747266]
[1694085568014,3.5921042,25768.0,25767.0,0.88747266]
[1694085568246,3.5907242,25768.0,25767.0,0.88747266]
[1694085568450,3.5910842,25768.0,25767.0,0.88747266]
[1694085569346,3.5910242,25768.0,25767.0,0.88747266]
[1694085569559,3.5913242,25768.0,25767.0,0.88747266]
[1694085569763,3.5912642,25768.0,25767.0,0.88747266]
[1694085569972,3.5913842,25768.0,25767.0,0.88747266]
[1694085570182,3.5939642,25768.0,25767.0,0.88747266]
[1694085570408,3.5933642,25768.0,25767.0,0.88747266]
[1694085570603,3.5934242,25768.0,25767.0,0.88747266]
[1694085570831,3.5924642,25768.0,25767.0,0.88747266]
[1694085571019,3.5924042,25768.0,25767.0,0.88747266]
[1694085571634,3.5923442,25768.0,25767.0,0.88747266]
[1694085572163,3.5925242,25768.0,25767.0,0.88747266]
[1694085572366,3.5875442,25768.0,25767.0,0.88747266]
[1694085572569,3.5876042,25768.0,25767.0,0.88747266]
[1694085572773,3.5872442,25768.0,25767.0,0.88747266]
[1694085573002,3.5871842,25768.0,25767.0,0.88747266]
[1694085573213,3.5875442,25768.0,25767.0,0.88747266]
[1694085573410,3.5874842,25768.0,25767.0,0.88747266]
[1694085573790,3.5874242,25768.0,25767.0,0.88747266]
[1694085573991,3.5871242,25768.0,25767.0,0.88747266]
[1694085574193,3.5876042,25768.0,25767.0,0.88747266]
[1694085574375,3.5875442,25768.0,25767.0,0.88747266]
[1694085574585,3.5874842,25768.0,25767.0,0.88747266]
[1694085575178,3.5874242,25768.0,25767.0,0.88747266]
[1694085575384,3.5874842,25768.0,25767.0,0.88747266]
[1694085575590,3.5874242,25768.0,25767.0,0.88747266]